Cogmind - Beta 16 @@@ ROGUE MODE // 2025.11.13 @ 01:41:27 Player: Demo Result: Destroyed by YI-UF0 with YI-UF0's Doublenader Performance ------------- Evolutions (0) 0 Regions Visited (2) 400 Robots Destroyed (3) 15 Value Destroyed (30) 30 Prototype IDs (0) 0 Alien Tech Used (0) 0 Bonus (155) 155 TOTAL SCORE: 600 Bonus ------- Follower Combat Kills 155 Cogmind --------- Core Integrity 0/250 Matter 296/300 Energy 100/100 System Corruption 0% Temperature Cool (0) Movement Flying (37) Location -10/Mines Parts ------- > --- POWER (1) -------- (None) > --- PROPULSION (2) --- Flight Unit Flight Unit > --- UTILITY (2) ------ (None) > --- WEAPON (2) ------- Light Assault Rifle Light Assault Rifle > --- INVENTORY (5) ---- Flight Unit Flight Unit Large Storage Unit Light Assault Rifle Peak State ------------ > --- POWER ------------ (None) > --- PROPULSION ------- Light Treads Light Treads > --- UTILITY ---------- (None) > --- WEAPON ----------- Small Laser Light Assault Rifle > --- INVENTORY -------- Large Storage Unit [Rating: 4] Favorites ----------- Power None Propulsion Light Treads Treads Light Treads Flight Unit Flight Unit Utility None Weapon Light Assault Rifle Energy Gun Small Laser Ballistic Gun Light Assault Rifle Build | -11 -10 -10 ------- Run | Yrd Mat Min Slots Evolved . | . . . Power . | . . . Propulsion . | . . . Utility . | . . . Weapon . | . . . Parts Attached 9 | 2 2 5 Power . | . . . Engine . | . . . Core . | . . . Reactor . | . . . Propulsion 5 | 2 1 2 Treads 3 | 2 1 . Leg . | . . . Wheel . | . . . Hover . | . . . Flight 2 | . . 2 Utility . | . . . Device . | . . . Storage . | . . . Processor . | . . . Hackware . | . . . Protection . | . . . Artifact . | . . . Weapon 4 | . 1 3 Energy Gun 1 | . 1 . Energy Cannon . | . . . Ballistic Gun 3 | . . 3 Ballistic Cannon . | . . . Launcher . | . . . Special Weapon . | . . . Impact Weapon . | . . . Slashing Weapon . | . . . Piercing Weapon . | . . . Special Melee Weapon . | . . . Unidentified Prototypes . | . . . Parts Lost 2 | . 1 1 Power . | . . . Propulsion 2 | . 1 1 Utility . | . . . Weapon . | . . . Highest Loss Streak 1 | . 1 1 To Critical Strikes . | . . . Average Backups 1 | . . 1 Power . | . . . Propulsion . | . . . Utility . | . . 1 Weapon . | . . . Tool/Special . | . . . Unused Backups 3 | . . 3 Power . | . . . Propulsion 2 | . . 2 Utility 1 | . . 1 Weapon . | . . . Tool/Special . | . . . Average Slot Usage (%) 40 | . 28 51 Treads 23 | . 28 19 Flight 3 | . . 7 Energy Gun 5 | . . 9 Ballistic Gun 7 | . . 14 Peak Build Rating 4 | 2 3 4 Average Rating 2 | 1 2 3 On Entrance 1 | . 2 3 Avg Prop Armor Cover (%) 36 | 38 40 30 Naked Turns . | . . . Heaviest Build 2 | . 1 2 Greatest Support 8 | 3 3 8 Greatest Overweight (x) . | . . . Average Overweight (x) . | . . . Largest Inventory Capacity 5 | 5 5 5 Average Capacity 5 | 5 5 5 Most Carried 4 | . 2 4 Average Carried 1 | . . 1 Final Capacity 5 | 5 5 5 Final Carried 4 | . 1 4 Class Distribution -------------------- 80% | Mutant 19% | Scavenger-Mutant Dominant Class ---------------- Mutant | -10/Materials Mutant | -10/Mines Resources | -11 -10 -10 ----------- Run | Yrd Mat Min Matter Collected 284 | 170 50 64 Remotely . | . . . Salvage Created 38 | . . 38 Parts 8 | . . 8 Haulers Intercepted . | . . . Recyclers Shooed . | . . . Parts Field Recycled . | . . . Retrieved Matter . | . . . Parts Self-Destructed . | . . . Prevented . | . . . Parts Restored . | . . . Kills | -11 -10 -10 ------- Run | Yrd Mat Min Combat Hostiles Destroyed 3 | . . 3 Guns 3 | . . 3 Classes Destroyed 1 | . . 1 Swarmer 3 | . . 3 Best Kill Streak 3 | . . 3 Combat Bots Only 3 | . . 3 Max Kills in Single Turn 1 | . . 1 Gunslinging . | . . . Exploded . | . . . Melee . | . . . Uniques/NPCs Destroyed . | . . . Combat | -11 -10 -10 -------- Run | Yrd Mat Min Hostile Shots Fired 114 | . 82 32 Missed 41 | . 30 11 Hits 73 | . 52 21 Projectile 73 | . 52 21 AOE 4 | . . 4 Critical Strikes 1 | . . 1 Damage Taken 815 | . 520 295 Core 294 | . 149 145 Absorbed by Shields . | . . . Core Remaining (%) 100 | 100 . . Volleys Fired 9 | . . 9 Largest 2 | . . 2 Hottest 60 | . . 60 Shots Fired 16 | . . 16 Gun 16 | . . 16 Cannon . | . . . Launcher . | . . . Special . | . . . Kinetic 7 | . . 7 Thermal 9 | . . 9 Explosive . | . . . Electromagnetic . | . . . Robot Hit Streak 2 | . . 2 Robot Miss Streak 2 | . . 2 Penetration Max . | . . . Secondary Targets 1 | . . 1 Max Gunslinging Chain 1 | . . 1 Shots Hit Robots 6 | . . 6 Core Hits 4 | . . 4 Critical Kills . | . . . Critical Parts Destroyed . | . . . Critical Strikes . | . . . Melee Attacks . | . . . Impact . | . . . Slashing . | . . . Piercing . | . . . Sneak Attacks . | . . . Combat Hostiles . | . . . Follow-up Attacks . | . . . Damage Inflicted 66 | . 6 60 Guns 60 | . . 60 Cannons . | . . . Explosions . | . . . Melee . | . . . Ramming 6 | . 6 . Kinetic 16 | . . 16 Thermal 44 | . . 44 Explosive . | . . . Electromagnetic . | . . . Impact . | . . . Slashing . | . . . Piercing . | . . . Highest Corruption . | . . . Average Corruption . | . . . Corruption Purged . | . . . Corruption Blocked . | . . . Overload Shots . | . . . Overflow Damage . | . . . Projectiles . | . . . Explosions . | . . . Melee . | . . . Knockbacks . | . . . Impact . | . . . Kinetic . | . . . Secondary . | . . . Self-Inflicted Damage 3 | . 3 . Shots . | . . . Rammed 1 | . 1 . Targets Rammed 1 | . 1 . Kicked . | . . . Crushed . | . . . Highest Temperature 20 | . . 20 Average Temperature 8 | . . 8 Received Heat Transfer 156 | . 150 6 Siege Activations . | . . . Martial Activations . | . . . Shielding Activations . | . . . Robots Disrupted . | . . . Combat Hostiles . | . . . Robots Corrupted . | . . . Combat Hostiles . | . . . Parts Fried . | . . . Impact Corruptions . | . . . Robots Melted . | . . . Combat Hostiles . | . . . Parts Melted . | . . . Heat Transferred 100 | . . 100 Parts Sabotaged . | . . . Parts Stolen . | . . . Parts Stripped . | . . . Power Chain Reactions . | . . . Alert | -11 -10 -10 ------- Run | Yrd Mat Min Maximum Alert Level 1 | . . 1 Low Security (%) 75 | 100 100 53 Level 1 24 | . . 46 Level 2 . | . . . Level 3 . | . . . Level 4 . | . . . Level 5 . | . . . High Security . | . . . Max Security . | . . . Peak Influence 302 | . 45 302 Initial 13 | . . 13 Average 97 | . 14 175 Influence Increases 479 | . 90 389 Destroy 0b10 Robot/C 240 | . . 240 Destroy Leader 50 | . . 50 Allied During Kill 54 | . . 54 Lose Combat Pursuer 135 | . 90 45 Influence Decreases 197 | . 55 142 Entered New Map 22 | . . 22 Time Decay 155 | . 45 110 Lost Part 20 | . 10 10 Squads Dispatched 2 | . 2 . Investigation 1 | . 1 . Extermination . | . . . Reinforcement 1 | . 1 . Assault . | . . . Garrison . | . . . Intercept . | . . . Searches Triggered . | . . . Construction Impeded . | . . . Haulers Reinforced . | . . . Active Scanning Responses . | . . . Cargo Convoy Interrupts . | . . . Stealth | -11 -10 -10 --------- Run | Yrd Mat Min Distress Signals 2 | . 2 . Communications Jammed . | . . . Distress Signals . | . . . Times Spotted 33 | . 18 15 Peak Tracking Total 12 | . 12 4 Tactical Retreats 5 | . 2 3 Traps | -11 -10 -10 ------- Run | Yrd Mat Min Traps Triggered 1 | . 1 . Indirectly . | . . . Trap Hack Attempts . | . . . Triggered . | . . . Disarmed . | . . . Reprogrammed . | . . . Reused . | . . . Traps Extracted . | . . . Installed . | . . . Triggered . | . . . Machines | -11 -10 -10 ---------- Run | Yrd Mat Min Machines Disabled . | . . . Max in Single Turn . | . . . Machines Repaired . | . . . Machines Dismantled . | . . . Machines Sabotaged . | . . . Overloaded Fab Kills . | . . . Hacking | -11 -10 -10 --------- Run | Yrd Mat Min Machines Accessed . | . . . Terminals . | . . . Fabricators . | . . . Repair Stations . | . . . Recycling Units . | . . . Scanalyzers . | . . . Garrison Access . | . . . Total Hacks . | . . . Successful . | . . . Failed . | . . . Catastrophic . | . . . Database Lockouts . | . . . Manual . | . . . Terminals . | . . . Fabricators . | . . . Repair Stations . | . . . Recycling Units . | . . . Scanalyzers . | . . . Garrison Access . | . . . Terminal Hacks . | . . . Fabricator Hacks . | . . . Repair Station Hacks . | . . . Recycling Unit Hacks . | . . . Scanalyzer . | . . . Garrison Access Hacks . | . . . Unauthorized Hacks . | . . . Terminals . | . . . Fabricators . | . . . Repair Stations . | . . . Recycling Units . | . . . Scanalyzers . | . . . Garrison Access . | . . . Data Cores Recovered . | . . . Used . | . . . Hacking Detections . | . . . Full Trace Events . | . . . Feedback Events . | . . . Feedback Blocked . | . . . Robot Schematics Acquired . | . . . Robots Built . | . . . Authchips . | . . . Time . | . . . Total Robot Build Rating . | . . . Part Schematics Acquired . | . . . Parts Built . | . . . Authchips . | . . . Time . | . . . Total Part Build Rating . | . . . Part Studies Acquired . | . . . Parts Repaired . | . . . Time . | . . . Parts Recycled . | . . . Recycled Matter . | . . . Retrieved Matter . | . . . Retrieved Components . | . . . Parts Scanalyzed . | . . . Part Schematics Acquired . | . . . Parts Damaged . | . . . Bothacking | -11 -10 -10 ------------ Run | Yrd Mat Min Used RIF Installer . | . . . Robots Hacked . | . . . Non-combat . | . . . Combat . | . . . Robot Hacks Applied . | . . . Relay Couplers Released . | . . . Fabnet Peak Effective % . | . . . Robots Rewired . | . . . Allies Hacked . | . . . Hacks Repelled . | . . . Allies | -11 -10 -10 -------- Run | Yrd Mat Min Total Allies 4 | . . 4 Largest Group 4 | . . 4 Highest-Rated Group 71 | . . 71 Highest-Rated Ally 31 | . . 31 Total Orders . | . . . Ally Attacks 20 | . . 20 Total Damage 235 | . . 235 Kills 9 | . . 9 Allies Corrupted . | . . . Allies Melted . | . . . Intel | -11 -10 -10 ------- Run | Yrd Mat Min Active Infowar (turns) . | . . . Robot Analysis Total . | . . . Derelict Logs Recovered . | . . . Drone Launches . | . . . Drone Recoveries . | . . . Exploration | -11 -10 -10 ------------- Run | Yrd Mat Min Turns Passed 423 | 15 188 220 Spaces Moved 738 | 23 315 400 Core 586 | 23 315 248 Treads . | . . . Legs . | . . . Wheels . | . . . Hover . | . . . Flight 152 | . . 152 Fastest Speed 37 | 50 50 37 Average Speed 47 | 50 50 45 Slowest Speed 50 | 50 50 50 Overloaded Moves . | . . . Propulsion Burnouts . | . . . Robots Hopped 2 | . . 2 Potential Cave-ins . | . . . Cave-ins Triggered . | . . . Exploration Rate (%) 41 | 3 65 57 Regions Visited 2 Branch Regions 1 Pre-discovered Areas 1 | . . 1 Known Exits Taken . | . . . Unknown Exits Taken 2 | 1 1 . Scrap Searched . | . . . Spaces Dug . | . . . Terrain Destroyed . | . . . Melee . | . . . Projectile . | . . . AOE . | . . . Terrain Rammed . | . . . Walls Destroyed . | . . . Machines Disabled . | . . . Actions | -11 -10 -10 --------- Run | Yrd Mat Min Total 789 | 24 344 421 Wait 30 | . 25 5 Move 732 | 22 314 396 Hop 2 | . . 2 Pick Up 4 | . 2 2 Fast Attach 7 | 2 1 4 Attach 1 | . 1 . Detach . | . . . Swap 1 | . . 1 Drop 2 | . . 2 Fire 9 | . . 9 Melee . | . . . Ram 1 | . 1 . Kick . | . . . Crush . | . . . Escape Stasis . | . . . Rewire . | . . . Trap . | . . . Miscellaneous . | . . . Route ------- -11/Scrapyard -10/Materials (discovered 3 exits: [*Mat x2] / [*Min]) -10/Mines (discovered 1 exit: [*Exi]) History --------- Turn | Location | Event 3 | -11/Scrapyard | Discovered new exit (range 16) 16 | -11/Scrapyard | Entered Materials 64 | -10/Materials | Discovered new exit (range 5) 186 | -10/Materials | Discovered new exit (range 5) 189 | -10/Materials | Core integrity fell below 50% 199 | -10/Materials | Discovered new exit (range 12) 204 | -10/Materials | Entered Mines 237 | -10/Mines | Assisted by bots powering up and referring to "LRC-V3" 267 | -10/Mines | Escorted by a lone wolf Derelict 303 | -10/Mines | Build established: Mutant 331 | -10/Mines | Deemed a non-threat by the Exiles lab entrance 331 | -10/Mines | Discovered new exit (range 5) 401 | -10/Mines | A weapon hastily lodged in a ceiling crevice suddenly fell to the ground 408 | -10/Mines | Core integrity fell below 20% 414 | -10/Mines | Learned location of Storage (-8) 424 | -10/Mines | Destroyed by YI-UF0 with YI-UF0's Doublenader Last Messages --------------- 00366_ Acquired 14 matter. 00369_ Acquired Flight Unit. 00391_ S-10 Pest destroyed. 00393_ R-06 Scavenger collects Lgt. Ion Engine. 00394_ S-10 Pest destroyed. 00401_ An Enh. Flamer has been hastily shoved under some rubble with a note attached: "One is never enough." 00414_ A derelict emerges from the shadows: "Are any of them following you? I'm here trying to lose some heat after our second raid on Storage failed. Whatever you do stay away from that place, they've tightened security following our previous successful raids." World map updated: -8/Storage. 00416_ AZ-EHS(g): "We scattered so the Unaware couldn't effectively use their advantage in numbers, and I suggest you do the same." 00416_ AZ-EHS(g) slips back into the shadows. 00423_ The unstable cave ceiling collapses. Map ----- +----------------------------------------------------+ | ???????##########*%=###??????????????????????# #?? | | ???????????## [##????????????????????????# #?? | | ????????#### #?????????????????????????# #?? | | ???????## ##?????????????????????????# ### | | ??????## #####??????????????????????????# | | ??????# ##?????????????????????????????## ### | | ?????## #??????????????????????????????# ## | | ?????# ##????????????????########??????# # | | ?????# #####?????????????????# #??????# | | ?????# ##?????????????????????# #??????# | | ?????##????????????????????##?# ## ######## | | ??????????????????????????## ## ## * | | ??????????????????????????# | ## ### | | ??????????????????????????# ####### #######?? | | ??????????????????????????### #????# #???????? | | ??????????????????????????#### #????# #???????? | | ??????????????????????##### g ##???#=#???????? | | ??????????????????????# g### #???# #???????? | | ???????????????###???## ### #???# #???????? | | ???????????????? ## # g ## ##???# #???????? | | ????????????????? ##????# #???????? | | ????????????????????### #?????# #???????? | | ????????????????????# # #?????#*###?????? | | ????????????????????#### #= ####?????#[ ##????? | | ??????????????????###### # #??###??### #????? | | ?????????????????## # @ #?## ##???# ##????? | | ?????????????????# g #?# #??# #?????? | | ?????????????????# ########## #??# ##?????? | | ?????????????????## #??????## ##?< ???????? | | ?????????????????## ######## ####???????? | | ?????????????????# #?????????? | | ?????????????????# #?????????? | | ?????????????????## ########## ## ##?????????? | | ??????????????????#####????????########??????????? | | ?????????????????????????????????????????????????? | | ?????????????????????????????????????????????????? | | | | | | | | | | | | | | | | | | | | | | | | | | | | | +----------------------------------------------------+ Best States ------------- Heat Dissipation 25 Energy Generation 5 Energy Capacity 100 Matter Stores 300 Matter Capacity 300 Sight Range 16 Terrain Scan Density 10 Evasion (%) 62 Recoil Reduction 1 Item Schematics ----------------- None Robot Schematics ------------------ None Fabricated ------------ Nothing Repaired ---------- Nothing Studied --------- None Alien Tech Used ----------------- None Achievements -------------- None Challenges ------------ None Game ------ Seed ExpertSmartbombHarness Manual? 0 Play Time 00:06:12 Cumulative 401.4 hours Start 2025.11.12 @ 22:54:50 End 2025.11.13 @ 01:41:27 Sessions 3 Manual Loads 0 Difficulty Rogue Special Mode None Game No. 372 Rogue 372 Adventurer 0 Explorer 0 Win Type - Total 3 Types 2/1/0/0/0/0/0/0/0/0 Lore% 85 Gallery% 84 Achievement% 62 Wizard Run 0 Options --------- Layout 1 ASCII 0 Keyboard 0 Movement Numpad Keybinds 0 Fullscreen 1 Font 24/Smallcaps Map View 50x35 Zoom Use 0% Tactical HUD 1 Map Filters NONE Filters NONE Steam 1 RUN: 5dd77430-1c87-4fe4-bc04-18825b10e278